bitfinex/quotes_BTCUSD_20240902
["timestamp","ask_amount","ask_price","bid_price","bid_amount"]
[1725307625606,0.512681,58609.0,58608.0,0.03213187]
[1725307625822,0.853925,58609.0,58608.0,0.001]
[1725307626040,1.195169,58609.0,58608.0,0.001]
[1725307632373,0.171437,58609.0,58608.0,0.1502]
[1725307632617,0.000815,58609.0,58608.0,0.1502]
[1725307632833,0.000815,58609.0,58608.0,0.35195687]
[1725307633323,0.000815,58609.0,58608.0,0.37091957]
[1725307634457,0.000815,58609.0,58608.0,0.37181607]
[1725307636185,0.000815,58609.0,58608.0,0.37181681]
[1725307637277,0.171437,58609.0,58608.0,0.05199181]
[1725307637500,0.171437,58609.0,58608.0,0.03302837]
[1725307637501,0.853925,58609.0,58608.0,0.03302837]
[1725307637717,0.512681,58609.0,58608.0,0.03302837]
[1725307638008,0.853925,58609.0,58608.0,0.03302837]
[1725307638244,0.512681,58609.0,58608.0,0.0018965]
[1725307638490,0.512681,58609.0,58608.0,1.21820135]
[1725307638491,0.000815,58609.0,58608.0,1.21820135]
[1725307638711,0.000815,58609.0,58608.0,1.32538498]
[1725307638928,0.000815,58609.0,58608.0,1.61558322]
[1725307639137,0.000815,58609.0,58608.0,1.66675036]
[1725307639356,0.000815,58609.0,58608.0,1.66574639]
[1725307639842,0.000815,58609.0,58608.0,1.67974639]
[1725307640701,0.000815,58609.0,58608.0,1.69374639]
[1725307640922,0.000815,58609.0,58608.0,1.13248021]
[1725307641137,0.000815,58609.0,58608.0,0.74006307]
[1725307641366,0.000815,58609.0,58608.0,1.08131307]
[1725307641601,0.000815,58609.0,58608.0,0.74006307]
[1725307642767,0.000815,58609.0,58608.0,1.08131307]
[1725307643705,0.000815,58609.0,58608.0,0.74006307]
[1725307644377,0.000815,58609.0,58608.0,0.22818807]
[1725307644631,0.000815,58609.0,58608.0,0.23065337]
[1725307647657,0.512681,58609.0,58608.0,0.06002837]
[1725307648121,0.512681,58609.0,58608.0,0.0288965]
[1725307648363,0.512681,58609.0,58608.0,0.06002837]
[1725307649033,0.28775863,58609.0,58608.0,0.06002837]
[1725307649283,0.45838063,58609.0,58608.0,0.06002837]
[1725307650243,0.45838063,58609.0,58608.0,0.0288965]
[1725307650700,0.45838063,58609.0,58608.0,0.06002837]
[1725307653195,0.79962463,58609.0,58608.0,0.06002837]
[1725307653436,0.79962463,58609.0,58608.0,0.0288965]
[1725307658743,0.80043963,58609.0,58608.0,0.0288965]
[1725307660148,0.853925,58609.0,58608.0,0.0288965]
[1725307660372,1.195169,58609.0,58608.0,0.0288965]
[1725307662204,0.000815,58609.0,58608.0,1.56708768]
[1725307662430,0.000815,58609.0,58608.0,1.68747688]
[1725307662698,0.000815,58609.0,58608.0,1.75573365]
[1725307662949,0.000815,58609.0,58608.0,2.02216918]
[1725307663180,0.000815,58609.0,58608.0,2.0849265]
[1725307663406,0.000815,58609.0,58608.0,2.00613017]
[1725307663664,0.000815,58609.0,58608.0,2.06888465]
[1725307663897,0.000815,58609.0,58608.0,2.06688465]
[1725307664131,0.000815,58609.0,58608.0,2.05488465]
[1725307664363,0.000815,58609.0,58608.0,1.99213017]
[1725307664592,0.000815,58609.0,58608.0,2.00613017]
[1725307666011,0.000815,58609.0,58608.0,2.00413017]
[1725307666241,0.000815,58609.0,58608.0,2.00613017]
[1725307666918,0.000815,58609.0,58608.0,2.05724495]
[1725307667817,0.000815,58609.0,58608.0,2.00613017]
[1725307668039,0.000815,58609.0,58608.0,2.05724495]
[1725307668272,0.000815,58609.0,58608.0,2.00613017]
[1725307668496,0.000815,58609.0,58608.0,2.00612256]
[1725307669930,0.000815,58609.0,58608.0,2.05523734]
[1725307670409,0.000815,58609.0,58608.0,2.05723734]
[1725307670624,0.000815,58609.0,58608.0,2.03628249]
[1725307671293,0.000815,58609.0,58608.0,2.34737259]
[1725307671522,0.000815,58609.0,58608.0,1.98716771]
[1725307671960,0.000815,58609.0,58608.0,2.32841771]
[1725307672414,0.000815,58609.0,58608.0,2.34737282]
[1725307672643,0.000815,58609.0,58608.0,2.3964876]
[1725307672862,0.000815,58609.0,58608.0,2.0572376]
[1725307673087,0.000815,58609.0,58608.0,2.03828249]
[1725307673313,0.000815,58609.0,58608.0,2.00612279]
[1725307673530,0.000815,58609.0,58608.0,2.35421379]
[1725307674652,0.000815,58609.0,58608.0,2.01296379]
[1725307674875,0.000815,58609.0,58608.0,2.01096379]
[1725307675595,0.000815,58609.0,58608.0,1.81794761]
[1725307675820,0.000815,58609.0,58608.0,2.01296379]
[1725307676256,0.000815,58609.0,58608.0,2.01296159]
[1725307682601,0.000815,58609.0,58608.0,2.01296274]
[1725307689112,0.000815,58609.0,58608.0,2.0129637]
[1725307690011,0.000815,58609.0,58608.0,1.93489217]
[1725307692319,0.000815,58613.0,58612.0,1.82776565]
[1725307692546,0.000815,58613.0,58612.0,1.86972064]
[1725307692771,0.000815,58613.0,58612.0,1.95455909]
[1725307693025,0.000815,58613.0,58612.0,2.29578609]
[1725307694185,0.000815,58613.0,58612.0,2.37367228]
[1725307695124,0.000815,58613.0,58612.0,2.38767228]
[1725307695586,0.000815,58613.0,58612.0,2.40167228]
[1725307696068,0.000816,58619.0,58615.0,1.908649]
[1725307696292,0.000816,58619.0,58615.0,2.09399665]
[1725307696523,0.000816,58619.0,58615.0,2.12780458]
[1725307697446,0.000816,58619.0,58615.0,2.14180458]
[1725307698108,0.000816,58619.0,58615.0,2.15580458]
[1725307698797,0.000816,58619.0,58615.0,2.20681783]
[1725307699036,0.000816,58619.0,58615.0,2.15580585]
[1725307699508,0.000816,58619.0,58615.0,2.20683138]
[1725307699725,0.000816,58619.0,58615.0,2.15580585]
[1725307699940,0.000816,58619.0,58615.0,2.20682804]
[1725307700156,0.000816,58619.0,58615.0,2.15580585]
[1725307700591,0.000816,58619.0,58615.0,2.15380585]
[1725307701016,0.000816,58619.0,58615.0,2.15580585]
[1725307701909,0.000816,58619.0,58615.0,2.17380899]
[1725307703022,0.000816,58619.0,58615.0,2.17180899]
[1725307703255,0.000816,58619.0,58615.0,2.24856347]
[1725307704620,0.000816,58619.0,58615.0,2.25056347]
[1725307706236,0.000816,58619.0,58615.0,2.27622828]
[1725307706652,0.000816,58619.0,58615.0,2.17380899]
[1725307706864,0.000816,58619.0,58615.0,2.27622828]
[1725307707349,0.000816,58619.0,58615.0,2.36864717]
[1725307708333,0.000816,58619.0,58615.0,2.34969825]
[1725307708557,0.000816,58619.0,58615.0,2.49660007]
[1725307709029,0.000816,58619.0,58615.0,2.36865398]
[1725307709244,0.000816,58619.0,58615.0,2.49659842]
[1725307709925,0.000816,58619.0,58615.0,2.49659805]
[1725307710149,0.000816,58619.0,58615.0,2.15538905]
[1725307711314,0.000816,58619.0,58615.0,2.15538446]
[1725307711556,0.061916,58616.0,58615.0,0.59257666]
[1725307711772,0.061916,58616.0,58615.0,0.25136766]
[1725307712231,0.061916,58616.0,58615.0,0.27193302]
[1725307712450,0.061916,58616.0,58615.0,0.61810228]
[1725307712703,0.061916,58616.0,58615.0,0.27689328]
[1725307713134,0.061916,58616.0,58615.0,0.29089328]
[1725307713568,0.061916,58616.0,58615.0,0.12028928]
[1725307714723,0.000816,58616.0,58615.0,1.50702028]
[1725307714979,0.000816,58616.0,58615.0,1.48082697]
[1725307715205,0.000816,58616.0,58615.0,1.5575984]
[1725307715438,0.000816,58616.0,58615.0,1.5435984]
[1725307715673,0.000816,58616.0,58615.0,1.5435925]
[1725307716107,0.000816,58616.0,58615.0,1.31532107]
[1725307716604,0.000816,58616.0,58615.0,1.35249269]
[1725307717033,0.000816,58616.0,58615.0,1.36649269]
[1725307717710,0.000816,58616.0,58615.0,1.32932107]
[1725307717934,0.000816,58616.0,58615.0,1.31532107]
[1725307718159,0.000816,58616.0,58615.0,1.31932107]
[1725307718373,0.341082,58637.0,58617.0,0.341196]
[1725307718588,0.170565,58629.0,58625.0,0.170574]
[1725307719569,0.170565,58629.0,58626.0,0.04508711]
[1725307720697,0.170565,58629.0,58626.0,0.05408711]
[1725307721343,0.0979,58628.0,58626.0,0.05408711]
[1725307721988,0.0642,58628.0,58627.0,0.170569]
[1725307722476,0.0642,58628.0,58627.0,0.21565169]
[1725307724059,0.0642,58628.0,58627.0,0.22565169]
[1725307724500,0.0642,58628.0,58627.0,0.23765169]
[1725307725345,0.0642,58628.0,58627.0,0.06708269]
[1725307725563,0.234766,58628.0,58627.0,0.06708269]
[1725307725770,0.0642,58628.0,58627.0,0.06708269]
[1725307728322,0.575899,58628.0,58627.0,0.06708269]
[1725307729409,0.950732,58628.0,58627.0,0.06708269]
[1725307729866,0.950732,58628.0,58627.0,0.022]
[1725307731643,0.950732,58628.0,58627.0,0.0228976]
[1725307740893,1.291865,58628.0,58627.0,0.0228976]
[1725307741107,2.31811218,58628.0,58627.0,0.0228976]
[1725307741789,2.09596418,58628.0,58627.0,0.0228976]
[1725307742021,2.01811527,58628.0,58627.0,0.0228976]
[1725307742261,1.80733727,58628.0,58627.0,0.0228976]
[1725307742479,1.62768927,58628.0,58627.0,0.0228976]
[1725307743993,1.6107,58628.0,58627.0,0.0228976]
[1725307749645,1.563881,58628.0,58627.0,0.0228976]
[1725307750134,1.541455,58628.0,58627.0,0.0228976]
[1725307752124,1.358165,58628.0,58627.0,0.0228976]
[1725307763850,2.5633284,58628.0,58627.0,0.0228976]
[1725307764504,2.5633284,58628.0,58627.0,0.0128976]
[1725307764924,2.5633284,58628.0,58627.0,0.0138976]
[1725307765360,1.8942664,58628.0,58627.0,0.0128976]
[1725307765578,2.97264648,58628.0,58627.0,0.0008976]
[1725307765766,2.97264648,58628.0,58627.0,0.0018976]
[1725307766044,2.89468151,58628.0,58627.0,0.0018976]
[1725307766279,2.69036243,58628.0,58627.0,0.0028976]
[1725307766496,2.57298443,58628.0,58627.0,0.0028976]
[1725307767603,2.25145043,58628.0,58627.0,0.0028976]
[1725307775545,2.24965043,58628.0,58627.0,0.0028976]
[1725307775888,2.35202843,58628.0,58627.0,0.0028976]
[1725307776101,2.24965043,58628.0,58627.0,0.0028976]
[1725307776304,2.35202843,58628.0,58627.0,0.0028976]
[1725307777457,2.352072,58628.0,58627.0,0.0028976]
[1725307778070,1.81750143,58628.0,58627.0,0.0028976]
[1725307778287,3.44844726,58628.0,58627.0,0.0028976]
[1725307778509,3.34602343,58628.0,58627.0,0.0028976]
[1725307779695,3.17545743,58628.0,58627.0,0.0028976]
[1725307780133,3.34602343,58628.0,58627.0,0.0028976]
[1725307781664,3.25169743,58628.0,58627.0,0.0028976]
[1725307786508,3.35414969,58628.0,58627.0,0.0028976]
[1725307787660,3.46617329,58628.0,58627.0,0.0028976]
[1725307787882,3.69528269,58628.0,58627.0,0.0028976]
[1725307788169,3.72089576,58628.0,58627.0,0.0028976]
[1725307788631,3.72091935,58628.0,58627.0,0.0028976]
[1725307789727,4.09017243,58628.0,58627.0,0.0028976]
[1725307789958,4.25872407,58628.0,58627.0,0.0028976]
[1725307790416,4.14175207,58628.0,58627.0,0.0028976]
[1725307791347,4.15175207,58628.0,58627.0,0.0028976]
[1725307791551,3.98320043,58628.0,58627.0,0.0028976]
[1725307791993,3.864197,58628.0,58627.0,0.0028976]
[1725307792213,3.98120043,58628.0,58627.0,0.0028976]
[1725307793984,3.98320043,58628.0,58627.0,0.0028976]
[1725307795604,3.82224843,58628.0,58627.0,0.0028976]
[1725307796057,3.75984843,58628.0,58627.0,0.0028976]
[1725307800825,3.40671543,58628.0,58627.0,0.0028976]
[1725307801053,2.53065943,58628.0,58627.0,0.0028976]
[1725307801271,2.65865714,58628.0,58627.0,0.0028976]
[1725307804052,2.53065943,58628.0,58627.0,0.0028976]
[1725307804273,2.65866671,58628.0,58627.0,0.0028976]
[1725307805366,2.53065943,58628.0,58627.0,0.0028976]
[1725307805867,1.297781,58628.0,58627.0,0.0651976]
[1725307806086,0.1806415,58628.0,58627.0,0.1410976]
[1725307806297,0.274382,58628.0,58627.0,0.1410976]
[1725307806509,0.615515,58628.0,58627.0,0.1410976]
[1725307806778,0.615515,58628.0,58627.0,0.2100998]
[1725307807009,0.956648,58628.0,58627.0,0.2100998]
[1725307807258,1.297781,58628.0,58627.0,0.1400976]
[1725307808639,1.297781,58628.0,58627.0,0.1390976]
[1725307808640,1.294781,58628.0,58627.0,0.1390976]
[1725307808863,1.296781,58628.0,58627.0,0.1390976]
[1725307809327,1.74679,58628.0,58627.0,0.1390976]
[1725307809585,1.82357114,58628.0,58627.0,0.1390976]
[1725307809833,1.74679,58628.0,58627.0,0.1390976]
[1725307812831,1.711958,58628.0,58627.0,0.1390976]
[1725307813042,1.692547,58628.0,58627.0,0.1390976]
[1725307813954,1.296781,58628.0,58627.0,0.1390976]
[1725307818103,1.15023915,58628.0,58627.0,0.1390976]
[1725307820171,1.25023915,58628.0,58627.0,0.1390976]
[1725307822105,0.90910615,58628.0,58627.0,0.1390976]
[1725307824137,0.272566,58628.0,58627.0,0.1390976]
[1725307825014,0.273382,58628.0,58627.0,0.1390976]
[1725307825246,0.273382,58628.0,58627.0,0.2080998]
[1725307825247,0.73151843,58628.0,58627.0,0.2080998]
[1725307825457,1.07265143,58628.0,58627.0,0.2080998]
[1725307825662,1.07265143,58628.0,58627.0,0.1390976]
[1725307828053,1.07265143,58628.0,58627.0,0.2080998]
[1725307828971,1.07265143,58628.0,58627.0,0.1390976]
[1725307829410,0.955648,58628.0,58627.0,0.1390976]
[1725307830518,0.82959771,58628.0,58627.0,0.1390976]
[1725307832298,0.82959771,58628.0,58627.0,0.17246822]
[1725307832509,0.92959771,58628.0,58627.0,0.17246822]
[1725307834351,0.92959771,58628.0,58627.0,0.1390976]
[1725307838559,0.93041371,58628.0,58627.0,0.1390976]
[1725307845082,0.93041371,58628.0,58627.0,0.17250599]
[1725307855805,1.00721413,58628.0,58627.0,0.17250599]
[1725307856235,1.00721344,58628.0,58627.0,0.0008976]
[1725307856662,1.0072159,58628.0,58627.0,0.0008976]
[1725307857320,0.93041371,58628.0,58627.0,0.0008976]
[1725307857542,1.03281335,58628.0,58627.0,0.0008976]
[1725307857726,0.93041371,58628.0,58627.0,0.0008976]
[1725307858175,1.00721502,58628.0,58627.0,0.0008976]
[1725307859282,0.93041371,58628.0,58627.0,0.0008976]
[1725307859500,1.00722045,58628.0,58627.0,0.0008976]
[1725307860171,0.93041371,58628.0,58627.0,0.0008976]
[1725307860602,1.00722112,58628.0,58627.0,0.0008976]
[1725307861296,0.93041371,58628.0,58627.0,0.0008976]
[1725307861736,1.00722112,58628.0,58627.0,0.0008976]
[1725307861953,1.00722112,58628.0,58627.0,0.0652976]
[1725307862179,0.93041371,58628.0,58627.0,0.1423976]
[1725307862434,0.000816,58628.0,58627.0,0.6541056]
[1725307862905,0.000816,58628.0,58627.0,0.68751399]
[1725307863977,0.000816,58628.0,58627.0,0.69151399]
[1725307864189,0.000816,58628.0,58627.0,0.69351399]
[1725307864401,0.000816,58628.0,58627.0,0.68951399]
[1725307864619,0.000816,58628.0,58627.0,0.68751399]
[1725307864923,0.000816,58628.0,58627.0,0.71151399]
[1725307865023,0.000816,58628.0,58627.0,1.05265299]
[1725307865486,0.00816,58641.0,58634.0,0.97975043]
[1725307865707,0.00816,58641.0,58634.0,1.5132052]
[1725307865950,0.00816,58641.0,58634.0,1.93891164]
[1725307866175,0.00816,58641.0,58634.0,1.88769005]
[1725307866438,0.00816,58641.0,58634.0,1.97710979]
[1725307866655,0.00816,58641.0,58634.0,1.925949]
[1725307866874,0.00816,58641.0,58634.0,2.002835]
[1725307867301,0.00816,58641.0,58634.0,1.9770621]
[1725307867565,0.00816,58641.0,58634.0,1.57859105]
[1725307868269,0.00816,58641.0,58634.0,1.92169005]
[1725307868681,0.00816,58641.0,58634.0,1.59459105]
[1725307868892,0.00816,58641.0,58634.0,1.93569005]
[1725307870080,0.00816,58641.0,58634.0,1.47558762]
[1725307870335,0.00816,58641.0,58634.0,1.59259105]
[1725307870569,0.00816,58641.0,58634.0,1.90653428]
[1725307870828,0.00816,58641.0,58634.0,1.46558157]
[1725307871061,0.00816,58641.0,58634.0,1.56343528]
[1725307871728,0.00816,58641.0,58634.0,1.44643185]
[1725307871955,0.00816,58641.0,58634.0,1.56343528]
[1725307873154,0.00816,58641.0,58634.0,1.43643185]
[1725307873385,0.00816,58641.0,58634.0,1.54343528]
[1725307874681,0.00816,58641.0,58634.0,1.41643185]
[1725307874895,0.00816,58641.0,58634.0,1.54343528]
[1725307876609,0.00816,58641.0,58634.0,0.86880331]
[1725307876822,0.00816,58641.0,58634.0,0.88966947]
[1725307877035,0.00816,58641.0,58634.0,0.70911947]
[1725307877245,0.00816,58641.0,58634.0,0.71911947]
[1725307877472,0.00816,58641.0,58634.0,0.70911947]
[1725307879073,0.00816,58641.0,58634.0,0.59211604]
[1725307879325,0.170544,58636.0,58634.0,0.08046804]
[1725307879564,0.00816,58641.0,58634.0,0.14406804]
[1725307879565,0.170543,58637.0,58634.0,0.14406804]
[1725307879793,0.178706,58635.0,58634.0,0.14406804]
[1725307880008,0.00816,58635.0,58634.0,0.14406804]
[1725307883182,0.00816,58635.0,58634.0,0.14496564]
[1725307884953,0.00816,58635.0,58634.0,0.08136564]
[1725307888318,0.860892,58635.0,58634.0,0.08136564]
[1725307888783,0.860892,58635.0,58634.0,0.02711363]
[1725307889232,0.860892,58635.0,58634.0,0.0008976]
[1725307889459,0.519799,58635.0,58634.0,0.0008976]
[1725307889683,0.519799,58635.0,58634.0,0.0288976]
[1725307890596,0.519799,58635.0,58634.0,0.08314961]
[1725307890813,0.519799,58635.0,58634.0,0.0288976]
[1725307891034,0.519799,58635.0,58634.0,0.08314961]
[1725307891285,0.860892,58635.0,58634.0,0.0288976]
[1725307892558,1.31898843,58635.0,58634.0,0.0288976]
[1725307892783,0.97789543,58635.0,58634.0,0.0288976]
[1725307893483,0.97789543,58635.0,58634.0,0.0148976]
[1725307893924,0.97789543,58635.0,58634.0,0.0068976]
[1725307894795,0.860892,58635.0,58634.0,0.0138976]
[1725307913652,0.60719805,58635.0,58634.0,0.0138976]
[1725307913870,0.77774405,58635.0,58634.0,0.0138976]
[1725307918895,0.77856005,58635.0,58634.0,0.0138976]
[1725307921095,0.000816,58635.0,58634.0,0.3220466]
[1725307921456,0.000816,58635.0,58634.0,0.72080822]
[1725307921655,0.000816,58635.0,58634.0,1.06190722]
[1725307921882,0.000816,58635.0,58634.0,0.72080822]
[1725307922124,0.000816,58635.0,58634.0,0.71739761]
[1725307933513,0.000816,58635.0,58634.0,1.05849661]
[1725307933722,0.000816,58635.0,58634.0,1.4508345]
[1725307934184,0.000816,58635.0,58634.0,1.39959561]
[1725307934396,0.000816,58635.0,58634.0,1.39359561]
[1725307934627,0.000816,58635.0,58634.0,1.44482073]
[1725307934833,0.000816,58635.0,58634.0,1.45582073]
[1725307935042,0.000816,58635.0,58634.0,1.47370258]
[1725307935687,0.000816,58635.0,58634.0,1.46870258]
[1725307936115,0.000816,58635.0,58634.0,1.49452478]
[1725307936350,0.000816,58635.0,58634.0,1.43047746]
[1725307937259,0.000816,58635.0,58634.0,1.50729277]
[1725307937479,0.000816,58635.0,58634.0,1.43047746]
[1725307937977,0.000816,58635.0,58634.0,1.44047746]
[1725307938197,0.000816,58635.0,58634.0,1.46347746]
[1725307938627,0.000816,58635.0,58634.0,1.80457646]
[1725307938867,0.000816,58635.0,58634.0,1.46347746]
[1725307939502,0.000816,58635.0,58634.0,1.85573584]
[1725307939711,0.000816,58635.0,58634.0,1.51463684]
[1725307939929,0.000816,58635.0,58634.0,1.85573584]
[1725307940794,0.000816,58635.0,58634.0,1.51263684]
[1725307941502,0.000816,58635.0,58634.0,1.85373584]
[1725307942962,0.000816,58635.0,58634.0,1.82457646]
[1725307943179,0.000816,58635.0,58634.0,1.92457646]
[1725307943392,0.00816,58641.0,58640.0,1.82129143]
[1725307943628,0.00816,58641.0,58640.0,1.87344105]
[1725307943853,0.00816,58641.0,58640.0,2.00435182]
[1725307944128,0.00816,58641.0,58640.0,1.92765926]
[1725307944345,0.00816,58641.0,58640.0,2.37098]
[1725307944569,0.00816,58641.0,58640.0,2.35583038]
[1725307944774,0.00816,58641.0,58640.0,2.28271121]
[1725307945014,0.170459,58666.0,58661.0,0.17047]
[1725307945248,0.170463,58664.0,58657.0,0.0641]
[1725307945467,0.170463,58664.0,58662.0,0.05409435]
[1725307945468,0.1,58663.0,58662.0,0.05409435]
[1725307945684,0.1,58663.0,58660.0,0.170472]
[1725307945913,0.1,58663.0,58662.0,0.05409435]
[1725307946121,0.1,58663.0,58661.0,0.05409998]
[1725307946332,0.1,58663.0,58662.0,0.05409435]
[1725307946962,0.1,58663.0,58660.0,0.170472]
[1725307947171,0.1,58663.0,58662.0,0.016]
[1725307947605,0.1,58663.0,58662.0,0.07009435]
[1725307947820,0.1,58663.0,58662.0,0.06109435]
[1725307948245,0.270465,58663.0,58662.0,0.06109435]
[1725307948698,0.270465,58663.0,58662.0,0.05409435]
[1725307949216,0.270465,58663.0,58660.0,0.007]
[1725307949427,0.270465,58663.0,58662.0,0.05409435]
[1725307949644,0.270465,58663.0,58662.0,0.007]
[1725307949863,0.270465,58663.0,58662.0,0.07009435]
[1725307950093,0.340914,58666.0,58662.0,0.05409435]
[1725307950094,0.170459,58665.0,58662.0,0.05409435]
[1725307950573,0.170459,58665.0,58662.0,0.24258629]
[1725307950787,0.170459,58665.0,58662.0,0.05408872]
[1725307951634,0.170462,58664.0,58662.0,0.06108872]
[1725307952063,0.511373,58666.0,58662.0,0.06608872]
[1725307952281,0.27046,58665.0,58662.0,0.06608872]
[1725307952530,0.27046,58665.0,58662.0,0.06108872]
[1725307952978,0.27046,58665.0,58662.0,0.06008872]
[1725307953176,0.1,58665.0,58662.0,0.23655572]
[1725307953396,0.000816,58663.0,58662.0,0.23055572]
[1725307953609,0.000816,58663.0,58662.0,0.22955572]
[1725307953822,0.000816,58663.0,58662.0,0.23655572]
[1725307954269,0.34091,58667.0,58662.0,0.23655572]
[1725307954270,0.32985732,58667.0,58662.0,0.23655572]
[1725307954705,0.170459,58665.0,58662.0,0.22955572]
[1725307954933,0.170459,58665.0,58662.0,0.06308872]
[1725307955175,0.32985732,58667.0,58662.0,0.06308872]
[1725307955176,0.170457,58666.0,58662.0,0.23355672]
[1725307955387,0.170457,58666.0,58662.0,0.24055672]
[1725307955834,0.17046,58665.0,58662.0,0.06308872]
[1725307956060,0.065,58664.0,58662.0,0.05908872]
[1725307956531,0.065,58664.0,58662.0,0.22955472]
[1725307956740,0.065,58664.0,58662.0,0.22455472]
[1725307957035,0.065,58664.0,58662.0,0.23555472]
[1725307957253,0.065,58664.0,58662.0,0.22855472]
[1725307957693,0.1,58665.0,58662.0,0.23655472]
[1725307958313,0.1,58665.0,58662.0,0.23255472]
[1725307958528,0.1,58665.0,58662.0,0.23855472]
[1725307959009,0.1,58665.0,58662.0,0.23255472]
[1725307959206,0.1,58665.0,58662.0,0.22955472]
[1725307959484,0.1,58665.0,58662.0,0.23655472]
[1725307959710,0.00816,58668.0,58667.0,0.51136]
[1725307959919,0.00816,58668.0,58667.0,1.03437043]
[1725307960135,0.00816,58668.0,58667.0,1.08843664]
[1725307961065,0.00816,58668.0,58667.0,1.09443664]
[1725307961521,0.00816,58668.0,58667.0,1.09643664]
[1725307961961,0.00816,58668.0,58667.0,1.09443664]
[1725307962444,0.00816,58668.0,58667.0,1.10143664]
[1725307962900,0.00816,58668.0,58667.0,1.09543664]
[1725307963376,0.00816,58668.0,58667.0,1.10443664]
[1725307963584,0.00816,58668.0,58667.0,1.44534364]
[1725307965380,0.00816,58668.0,58667.0,1.86155064]
[1725307965632,0.00816,58668.0,58667.0,1.87957271]
[1725307966560,0.00816,58668.0,58667.0,2.27347971]
[1725307966777,0.00816,58668.0,58667.0,2.25545764]
[1725307966992,0.00816,58668.0,58667.0,2.25745764]
[1725307967223,0.00816,58668.0,58667.0,2.24845764]
[1725307967440,0.00816,58668.0,58667.0,2.26245764]
[1725307967653,0.00816,58668.0,58667.0,2.35545764]
[1725307967875,0.00816,58688.0,58674.0,2.02376643]
[1725307968128,0.00816,58688.0,58668.0,0.05069948]
[1725307968129,0.00816,58688.0,58686.0,1.12079343]
[1725307968385,0.00816,58688.0,58686.0,1.46158943]
[1725307968624,0.00816,58688.0,58686.0,1.55653521]
[1725307969843,0.00816,58688.0,58686.0,1.58453521]
[1725307970081,0.00816,58688.0,58686.0,1.66195355]
[1725307971435,0.00816,58688.0,58686.0,1.46753178]
[1725307971937,0.00816,58688.0,58686.0,1.66195355]
[1725307974080,0.0004,58699.0,58689.0,0.01]
[1725307974331,0.0004,58699.0,58687.0,0.0772]
[1725307974332,0.0004,58699.0,58693.0,1.55786777]
[1725307974567,0.0004,58699.0,58693.0,1.58086777]
[1725307974804,0.0004,58699.0,58693.0,1.61277281]
[1725307975021,0.0004,58699.0,58693.0,0.71683904]
[1725307975260,0.0004,58699.0,58693.0,1.03459504]
[1725307975753,0.0004,58699.0,58693.0,0.68383904]
[1725307976271,0.0004,58699.0,58693.0,1.03459504]
[1725307976527,0.0004,58699.0,58693.0,1.62677281]
[1725307976957,0.0004,58699.0,58693.0,1.62877281]
[1725307977428,0.0004,58699.0,58693.0,1.62677281]
[1725307977640,0.0004,58699.0,58693.0,1.64077281]
[1725307978575,0.0004,58699.0,58693.0,1.70908281]
[1725307979013,0.0004,58699.0,58693.0,1.64077281]
[1725307980402,0.0004,58699.0,58693.0,0.73483904]
[1725307980403,0.170364,58698.0,58693.0,0.73483904]
[1725307980642,0.170364,58698.0,58693.0,0.57103904]
[1725307980875,0.178535,58694.0,58693.0,0.05990504]
[1725307981366,0.920335,58694.0,58693.0,0.05990504]
[1725307981585,1.339085,58694.0,58693.0,0.05990504]
[1725307981822,1.339085,58694.0,58693.0,0.028]
[1725307982255,1.339085,58694.0,58680.0,0.180415]
[1725307982256,0.170406,58684.0,58680.0,0.180415]
[1725307982473,0.170407,58683.0,58680.0,0.01]
[1725307982754,0.48721,58694.0,58681.0,0.0319436]
[1725307982755,0.17041,58682.0,58681.0,0.0319436]
[1725307982983,0.85205,58682.0,58681.0,0.0319436]
[1725307983197,0.85205,58682.0,58670.0,0.340888]
[1725307983198,0.34082,58682.0,58672.0,0.599411]
[1725307983467,0.19442177,58689.0,58672.0,0.0781]
[1725307983695,0.487213,58694.0,58674.0,0.01]
[1725307983696,0.340847,58678.0,58674.0,0.01]
[1725307983941,0.170429,58676.0,58674.0,0.01]
[1725307984166,0.170429,58676.0,58675.0,0.03196288]
[1725307984627,0.170429,58676.0,58668.0,0.0881]
[1725307984628,0.170432,58675.0,58670.0,0.170444]
[1725307984852,0.340861,58675.0,58668.0,0.0781]
[1725307985071,0.401128,58681.0,58672.0,0.011]
[1725307985072,0.0603,58681.0,58672.0,0.011]
[1725307985315,0.170436,58673.0,58672.0,0.011]
[1725307985527,0.170436,58673.0,58672.0,0.014]
[1725307985742,0.340868,58674.0,58668.0,0.0781]
[1725307985991,0.340868,58674.0,58667.0,0.0008965]
[1725307985992,0.340883,58671.0,58670.0,0.008]
[1725307986240,0.21283093,58686.0,58670.0,0.008]
[1725307986241,0.0603,58689.0,58678.0,0.34084]
[1725307986471,0.29083093,58692.0,58680.0,0.19442177]
[1725307986707,0.170387,58690.0,58683.0,0.170404]
[1725307986955,0.170387,58690.0,58678.0,0.0781]
[1725307987223,0.340774,58690.0,58678.0,0.41894]
[1725307987440,0.1704,58686.0,58679.0,0.170417]
[1725307987679,0.340786,58688.0,58680.0,0.170414]
[1725307987970,0.170398,58686.0,58680.0,0.170414]
[1725307988204,0.34078,58689.0,58681.0,0.03237242]
[1725307988424,0.170396,58687.0,58681.0,0.03237242]
[1725307988652,0.170396,58687.0,58681.0,0.20278442]
[1725307988880,0.170396,58687.0,58681.0,0.03237242]
[1725307989145,0.170396,58687.0,58681.0,0.20278442]
[1725307989334,0.170396,58687.0,58679.0,0.511251]
[1725307989577,0.170396,58687.0,58682.0,0.0323692]
[1725307989788,0.170396,58687.0,58681.0,0.171411]
[1725307990003,0.170396,58687.0,58683.0,0.03236599]
[1725307990215,0.170396,58687.0,58682.0,0.0323692]
[1725307990428,0.170396,58687.0,58684.0,0.03236277]
[1725307990644,0.170399,58686.0,58683.0,0.03236599]
[1725307990861,0.170399,58686.0,58685.0,0.03235956]
[1725307991108,0.170399,58686.0,58681.0,0.171411]
[1725307991109,0.170399,58686.0,58684.0,0.03236277]
[1725307991321,0.34078,58689.0,58685.0,0.03235956]
[1725307991779,0.34078,58689.0,58679.0,0.340835]
[1725307992011,0.34078,58689.0,58678.0,0.0781]
[1725307992012,0.170395,58687.0,58686.0,0.03235635]
[1725307992223,0.511212,58684.0,58683.0,0.001]
[1725307992437,0.170407,58683.0,58682.0,0.001]
[1725307992652,0.511221,58683.0,58682.0,0.001]